Cogmind - Beta 13 @@@ ROGUE MODE // 2024.04.25 @ 20:34:33 Player: Faunarr Result: Destroyed by Y-54 Guardian with Gatling Laser Performance ------------- Evolutions (3) 1500 Regions Visited (4) 800 Robots Destroyed (53) 265 Value Destroyed (1628) 1628 Prototype IDs (2) 40 Alien Tech Used (0) 0 Bonus (0) 0 TOTAL SCORE: 4233 Bonus ------- None Cogmind --------- Core Integrity 0/700 Matter 270/300 Energy 99/100 System Corruption 5% Temperature Cool (12) Movement Core (50) Location -7/Factory Parts ------- > --- POWER (1) -------- (None) > --- PROPULSION (2) --- (None) > --- UTILITY (8) ------ (None) > --- WEAPON (2) ------- (None) > --- INVENTORY (5) ---- Improved Deuterium Engine Medium Storage Unit Light Armor Plating EMP Blaster Grenade Launcher Peak State ------------ > --- POWER ------------ Deuterium Engine > --- PROPULSION ------- Armored Treads Armored Treads > --- UTILITY ---------- Large Storage Unit Trap Scanner Visual Processing Unit Improved Terrain Scanner Terrain Scan Processor Advanced Targeting Computer Advanced Targeting Computer Hardened Medium Armor Plating > --- WEAPON ----------- Improved EM Shotgun Mini Assault Cannon > --- INVENTORY -------- Ion Engine Light Ion Engine Armored Treads Wheel Medium Storage Unit Improved Terrain Scanner Advanced ECM Suite Light Armor Plating System Shield Heavy Assault Rifle Flak Cannon EMP Blaster Grenade Launcher Mini Grenade Launcher Katana [Rating: 40] Favorites ----------- Power Improved Ion Engine Engine Improved Ion Engine Power Core Micro Nuclear Core Propulsion Armored Treads Treads Armored Treads Wheel Compact Wheel Utility Advanced Targeting Computer Device Improved Terrain Scanner Storage Large Storage Unit Processor Advanced Targeting Computer Protection Core Shielding Weapon Heavy Assault Rifle Energy Gun Spread Laser Ballistic Gun Heavy Assault Rifle Ballistic Cannon Flak Cannon Launcher EMP Blaster Slashing Weapon Katana Build | -11 -10 -9 -8 -7 ------- Run | Yrd Mat Mat Mat Fac Slots Evolved 6 | . . 2 2 2 Power . | . . . . . Propulsion . | . . . . . Utility 6 | . . 2 2 2 Weapon . | . . . . . Parts Attached 54 | 7 2 22 14 9 Power 9 | 1 . 4 2 2 Engine 8 | 1 . 4 2 1 Core 1 | . . . . 1 Reactor . | . . . . . Propulsion 10 | 2 . 7 . 1 Treads 7 | 2 . 4 . 1 Leg . | . . . . . Wheel 3 | . . 3 . . Hover . | . . . . . Flight . | . . . . . Utility 14 | 2 2 3 5 2 Device 5 | 1 . 2 2 . Storage 3 | 1 2 . . . Processor 4 | . . . 3 1 Hackware . | . . . . . Protection 2 | . . 1 . 1 Artifact . | . . . . . Weapon 21 | 2 . 8 7 4 Energy Gun 7 | . . 4 2 1 Energy Cannon . | . . . . . Ballistic Gun 7 | 2 . 2 2 1 Ballistic Cannon 2 | . . . . 2 Launcher 2 | . . 1 1 . Special Weapon . | . . . . . Impact Weapon . | . . . . . Slashing Weapon 3 | . . 1 2 . Piercing Weapon . | . . . . . Special Melee Weapon . | . . . . . Unidentified Prototypes 2 | . . . . 2 Parts Lost 18 | . . 8 6 4 Power 3 | . . 1 1 1 Propulsion 6 | . . 4 . 2 Utility 4 | . . 1 3 . Weapon 5 | . . 2 2 1 Highest Loss Streak 4 | . . 3 4 2 To Critical Strikes . | . . . . . Average Slot Usage (%) 95 | . 100 92 96 98 Engine 8 | . 14 10 8 6 Treads 15 | . 28 12 18 14 Wheel 2 | . . 7 . . Device 17 | . 14 18 21 14 Storage 9 | . 14 11 9 6 Processor 14 | . . . 16 29 Protection 6 | . . 10 4 6 Energy Gun 4 | . . 7 3 4 Ballistic Gun 12 | . 28 12 12 9 Naked Turns 16 | . . . . 16 Heaviest Build 50 | 13 28 37 39 50 Greatest Support 40 | 40 40 40 40 40 Greatest Overweight (x) 3 | . . 3 . 1 Average Overweight (x) . | . . 1 . . Largest Inventory Capacity 15 | 8 15 15 15 15 Average Capacity 14 | 7 10 15 15 14 Most Carried 15 | 5 7 15 14 15 Average Carried 11 | 3 5 10 12 14 Final Capacity 15 | 8 15 15 15 5 Final Carried 15 | 4 7 15 14 5 Class Distribution -------------------- 48% | Mutant 33% | Skirmisher 17% | Scavenger-Mutant Dominant Class ---------------- Mutant | -10/Materials Scavenger-Mutant | -9/Materials Mutant | -8/Materials Skirmisher | -7/Factory Resources | -11 -10 -9 -8 -7 ----------- Run | Yrd Mat Mat Mat Fac Matter Collected 1254 | 162 . 592 355 145 Remotely . | . . . . . Salvage Created 1873 | 159 40 805 549 320 Parts 128 | 15 3 52 35 23 Haulers Intercepted . | . . . . . Recyclers Shooed 3 | 1 . 1 . 1 Parts Field Recycled . | . . . . . Retrieved Matter . | . . . . . Parts Self-Destructed . | . . . . . Prevented . | . . . . . Kills | -11 -10 -9 -8 -7 ------- Run | Yrd Mat Mat Mat Fac Combat Hostiles Destroyed 43 | . 1 21 14 7 Guns 37 | . 1 21 13 2 Cannons 3 | . . . . 3 AOE 3 | . . . 1 2 Classes Destroyed 10 | 2 1 3 3 1 Builder 2 | . . . 1 1 Tunneler 4 | 4 . . . . Recycler 3 | 1 . 2 . . Operator 1 | . . . 1 . Swarmer 12 | . . 7 3 2 Grunt 18 | . 1 8 6 3 Duelist 1 | . . 1 . . Sentry 8 | . . 5 3 . Hunter 2 | . . . 2 . Programmer 2 | . . . . 2 Best Kill Streak 5 | 5 1 5 4 3 Combat Bots Only 5 | . 1 5 4 3 Max Kills in Single Turn 2 | 1 1 1 1 2 Gunslinging . | . . . . . Exploded 2 | . . . 1 2 Melee . | . . . . . Uniques/NPCs Destroyed . | . . . . . Combat | -11 -10 -9 -8 -7 -------- Run | Yrd Mat Mat Mat Fac Hostile Shots Fired 397 | . 6 114 112 165 Missed 123 | . . 26 34 63 Damage Taken 3856 | . 67 1031 1302 1456 Core 1030 | . 10 77 233 710 Absorbed by Shields 127 | . . . 127 . Redirected to Shielding 51 | . . 15 36 . Core Remaining (%) 83 | 100 96 80 57 . Volleys Fired 142 | 9 5 55 49 24 Largest 2 | 2 2 2 2 2 Hottest 89 | 40 40 88 88 89 Shots Fired 274 | 18 10 106 90 50 Gun 263 | 18 10 106 86 43 Cannon 7 | . . . . 7 Launcher 4 | . . . 4 . Special . | . . . . . Kinetic 199 | 18 10 77 69 25 Thermal 46 | . . 29 17 . Explosive . | . . . . . Electromagnetic 29 | . . . 4 25 Robot Hit Streak 28 | 4 10 14 28 23 Robot Miss Streak 4 | 1 . 4 4 3 Penetration Max . | . . . . . Secondary Targets 3 | . . 2 1 . Max Gunslinging Chain 1 | . . 1 1 . Shots Hit Robots 226 | 11 9 85 74 47 Core Hits 149 | 6 2 62 48 31 Critical Kills . | . . . . . Critical Parts Destroyed . | . . . . . Critical Strikes . | . . . . . Melee Attacks 8 | . . 2 6 . Impact . | . . . . . Slashing 8 | . . 2 6 . Piercing . | . . . . . Sneak Attacks . | . . . . . Combat Hostiles . | . . . . . Follow-up Attacks . | . . . . . Damage Inflicted 3630 | 147 114 1197 1268 904 Guns 3014 | 147 114 1170 1019 564 Cannons 131 | . . . . 131 Explosions 444 | . . . 249 195 Melee . | . . . . . Ramming 41 | . . 27 . 14 Kinetic 2238 | 147 114 775 801 401 Thermal 808 | . . 395 218 195 Explosive 130 | . . . 130 . Electromagnetic 413 | . . . 119 294 Impact . | . . . . . Slashing . | . . . . . Piercing . | . . . . . Highest Corruption 5 | . 1 . . 5 Average Corruption 2 | . 1 . . 3 Corruption Purged . | . . . . . Corruption Blocked . | . . . . . Effects 9 | . 1 . . 8 Matter Fused 2 | . . . . 2 Heat Flow Errors 2 | . . . . 2 Energy Discharges 1 | . . . . 1 Data Loss (minor) 1 | . 1 . . . Misfires 2 | . . . . 2 Alerts 1 | . . . . 1 Overload Shots . | . . . . . Overflow Damage 67 | . . . 67 . Projectiles . | . . . . . Explosions 67 | . . . 67 . Melee . | . . . . . Knockbacks 6 | . . . . 6 Impact . | . . . . . Kinetic 6 | . . . . 6 Secondary . | . . . . . Self-Inflicted Damage 294 | . . 4 224 66 Shots 3 | . . . 2 1 Rammed 6 | . . 4 . 2 Targets Rammed 6 | . . 4 . 2 Kicked . | . . . . . Crushed . | . . . . . Highest Temperature 252 | . . 162 162 252 Average Temperature 54 | . . 42 57 69 Received Heat Transfer 915 | . 36 231 354 294 Effects 1 | . . . . 1 Energy Bleed 1 | . . . . 1 Siege Activations . | . . . . . Robots Corrupted . | . . . . . Combat Hostiles . | . . . . . Parts Fried 2 | . . . 1 1 Impact Corruptions . | . . . . . Robots Melted . | . . . . . Combat Hostiles . | . . . . . Parts Melted . | . . . . . Heat Transferred 905 | . . 525 280 100 Parts Sabotaged . | . . . . . Parts Stolen . | . . . . . Parts Stripped . | . . . . . Power Chain Reactions 2 | . . . 1 1 Alert | -11 -10 -9 -8 -7 ------- Run | Yrd Mat Mat Mat Fac Peak Influence 397 | 25 61 386 397 135 Initial 135 | . 16 25 105 135 Average 136 | 7 24 197 213 62 Maximum Alert Level 1 | . . 1 1 . Low Security (%) 73 | 100 100 40 68 100 Level 1 26 | . . 59 31 . Level 2 . | . . . . . Level 3 . | . . . . . Level 4 . | . . . . . Level 5 . | . . . . . High Security . | . . . . . Max Security . | . . . . . Squads Dispatched 9 | . 1 3 2 3 Investigation 3 | . 1 2 . . Extermination 2 | . . . . 2 Reinforcement 4 | . . 1 2 1 Assault . | . . . . . Garrison . | . . . . . Intercept . | . . . . . Searches Triggered . | . . . . . Construction Impeded . | . . . . . Haulers Reinforced . | . . . . . Active Scanning Responses . | . . . . . Cargo Convoy Interrupts 1 | . . . . 1 Stealth | -11 -10 -9 -8 -7 --------- Run | Yrd Mat Mat Mat Fac Distress Signals 5 | . 1 3 . 1 Communications Jammed . | . . . . . Distress Signals . | . . . . . Times Spotted 93 | . 2 32 23 36 Peak Tracking Total 16 | . 2 6 4 16 Tactical Retreats 2 | . . . 2 . Traps | -11 -10 -9 -8 -7 ------- Run | Yrd Mat Mat Mat Fac Traps Triggered 4 | . . 2 . 2 Indirectly . | . . . . . Trap Hack Attempts . | . . . . . Triggered . | . . . . . Disarmed 1 | . 1 . . . Reprogrammed . | . . . . . Reused . | . . . . . Traps Extracted . | . . . . . Installed . | . . . . . Triggered . | . . . . . Machines | -11 -10 -9 -8 -7 ---------- Run | Yrd Mat Mat Mat Fac Machines Disabled 3 | . . . 3 . Max in Single Turn 2 | . . . 2 . Garrison Access 2 | . . . 1 1 Machines Repaired . | . . . . . Machines Dismantled . | . . . . . Machines Sabotaged . | . . . . . Overloaded Fab Kills . | . . . . . Hacking | -11 -10 -9 -8 -7 --------- Run | Yrd Mat Mat Mat Fac Machines Accessed 12 | . 3 4 3 2 Terminals 6 | . 1 2 2 1 Fabricators . | . . . . . Repair Stations . | . . . . . Recycling Units 4 | . 2 2 . . Scanalyzers . | . . . . . Garrison Access 2 | . . . 1 1 Total Hacks 30 | . 8 10 8 4 Successful 11 | . 4 4 2 1 Failed 19 | . 4 6 6 3 Catastrophic 5 | . . 2 2 1 Database Lockouts . | . . . . . Manual 25 | . 8 9 6 2 Terminals 15 | . 3 4 6 2 Fabricators . | . . . . . Repair Stations . | . . . . . Recycling Units 11 | . 5 6 . . Scanalyzers . | . . . . . Garrison Access 4 | . . . 2 2 Terminal Hacks 3 | . 1 1 1 . Emergency Access Points 1 | . . 1 . . Unreport Threat 1 | . . . 1 . Disarm Traps 1 | . 1 . . . Fabricator Hacks . | . . . . . Repair Station Hacks . | . . . . . Recycling Unit Hacks . | . . . . . Scanalyzer . | . . . . . Garrison Access Hacks 2 | . . . 1 1 Seal Access 2 | . . . 1 1 Unauthorized Hacks 6 | . 3 3 . . Terminals . | . . . . . Fabricators . | . . . . . Repair Stations . | . . . . . Recycling Units 6 | . 3 3 . . Reject 4 | . 2 2 . . Mask 2 | . 1 1 . . Scanalyzers . | . . . . . Garrison Access . | . . . . . Data Cores Recovered . | . . . . . Used . | . . . . . Hacking Detections 9 | . 2 4 2 1 Full Trace Events 4 | . 1 2 1 . Feedback Events 1 | . 1 . . . Corruption 1 | . 1 . . . Feedback Blocked . | . . . . . Robot Schematics Acquired . | . . . . . Robots Built . | . . . . . Authchips . | . . . . . Time . | . . . . . Total Robot Build Rating . | . . . . . Part Schematics Acquired . | . . . . . Parts Built . | . . . . . Authchips . | . . . . . Time . | . . . . . Total Part Build Rating . | . . . . . Parts Repaired . | . . . . . Time . | . . . . . Parts Recycled . | . . . . . Recycled Matter . | . . . . . Retrieved Matter . | . . . . . Retrieved Components . | . . . . . Parts Scanalyzed . | . . . . . Part Schematics Acquired . | . . . . . Parts Damaged . | . . . . . Bothacking | -11 -10 -9 -8 -7 ------------ Run | Yrd Mat Mat Mat Fac Used RIF Installer . | . . . . . Robots Hacked . | . . . . . Non-combat . | . . . . . Combat . | . . . . . Robot Hacks Applied . | . . . . . Relay Couplers Released . | . . . . . Fabnet Peak Effective % . | . . . . . Robots Rewired . | . . . . . Allies Hacked . | . . . . . Hacks Repelled . | . . . . . Allies | -11 -10 -9 -8 -7 -------- Run | Yrd Mat Mat Mat Fac Total Allies . | . . . . . Largest Group . | . . . . . Highest-Rated Group . | . . . . . Highest-Rated Ally . | . . . . . Total Orders . | . . . . . Ally Attacks . | . . . . . Total Damage . | . . . . . Kills . | . . . . . Allies Corrupted . | . . . . . Allies Melted . | . . . . . Intel | -11 -10 -9 -8 -7 ------- Run | Yrd Mat Mat Mat Fac Robot Analysis Total . | . . . . . Derelict Logs Recovered . | . . . . . Drone Launches . | . . . . . Drone Recoveries . | . . . . . Exploration | -11 -10 -9 -8 -7 ------------- Run | Yrd Mat Mat Mat Fac Turns Passed 3362 | 114 253 1076 789 1130 Spaces Moved 1525 | 50 143 569 350 413 Core 43 | 10 . . . 33 Treads 1120 | 40 143 207 350 380 Legs . | . . . . . Wheels 362 | . . 362 . . Hover . | . . . . . Flight . | . . . . . Fastest Speed 50 | 50 160 100 170 50 Average Speed 175 | 138 160 143 170 233 Slowest Speed 250 | 160 160 250 170 250 Overloaded Moves . | . . . . . Propulsion Burnouts . | . . . . . Robots Hopped . | . . . . . Cave-ins Triggered . | . . . . . Exploration Rate (%) 25 | 3 33 47 29 14 Regions Visited 4 Branch Regions . Pre-discovered Areas . | . . . . . Known Exits Taken . | . . . . . Unknown Exits Taken 4 | 1 1 1 1 . Scrap Searched . | . . . . . Spaces Dug 8 | . . 2 6 . Terrain Destroyed 48 | . . 2 42 4 Melee 8 | . . 2 6 . Projectile . | . . . . . AOE 40 | . . . 36 4 Terrain Rammed . | . . . . . Walls Destroyed . | . . . . . Machines Disabled . | . . . . . Actions | -11 -10 -9 -8 -7 --------- Run | Yrd Mat Mat Mat Fac Total 1914 | 77 157 713 442 525 Wait 136 | 1 3 41 19 72 Move 1521 | 49 142 568 349 413 Hop . | . . . . . Pick Up 39 | 11 4 16 4 4 Fast Attach 7 | . . 4 2 1 Attach 26 | 7 . 8 7 4 Detach 1 | . . . 1 . Swap 21 | . 2 10 5 4 Drop 7 | . 1 5 . 1 Fire 142 | 9 5 55 49 24 Melee 8 | . . 2 6 . Ram 3 | . . 3 . . Kick . | . . . . . Crush 3 | . . 1 . 2 Escape Stasis . | . . . . . Rewire . | . . . . . Trap . | . . . . . Miscellaneous . | . . . . . Route ------- -11/Scrapyard -10/Materials -9/Materials -8/Materials -7/Factory History --------- Turn | Location | Event 7 | -11/Scrapyard | Discovered new exit (range 14) 115 | -11/Scrapyard | Entered Materials 304 | -10/Materials | Build established: Mutant 325 | -10/Materials | Discovered new exit (range 15) 368 | -10/Materials | Entered another Materials area 368 | -9/Materials | Evolved 2 slots: Utility x2 573 | -9/Materials | Lost 3 parts (2n1w) 826 | -9/Materials | Build established: Scavenger-Mutant 1142 | -9/Materials | Discovered new exit (range 4) 1444 | -9/Materials | Entered another Materials area 1444 | -8/Materials | Evolved 2 slots: Utility x2 1543 | -8/Materials | Build established: Mutant 1852 | -8/Materials | Lost 4 parts (2u2w) 2131 | -8/Materials | Discovered new exit (range 14) 2233 | -8/Materials | Entered Factory 2233 | -7/Factory | Evolved 2 slots: Utility x2 2540 | -7/Factory | Build established: Skirmisher 3344 | -7/Factory | Cargo convoy interrupted 3347 | -7/Factory | Released all parts (12) 3352 | -7/Factory | Core integrity fell below 50% 3358 | -7/Factory | Core integrity fell below 20% 3363 | -7/Factory | Destroyed by Y-54 Guardian with Gatling Laser Last Messages --------------- 03347_ Released Arm. Treads. 03347_ Released Mic. Nuclear Core. 03347_ C-30 ARC bursts open, deploying its payload. 03347_ H-55 Commando unfolds itself. 03347_ P-60 Hacker unfolds itself. 03347_ H-55 Commando unfolds itself. 03347_ M-28 Smith unfolds itself. 03347_ R-06 Scavenger collects Mni. Grenade Launcher. 03348_ Slug penetrates Wall. 03350_ K-01 Serf collects debris. 03350_ R-06 Scavenger collects Katana. 03351_ Penetrated by Slug. 03352_ U-05 Engineer builds a Wall. 03353_ R-06 Scavenger collects Wheel. 03355_ S-27 Virus destroyed. 03355_ Penetrated by Slug. 03358_ U-05 Engineer builds a Wall. 03358_ R-06 Scavenger destroyed. Map ----- +----------------------------------------------------+ | ??????????????? ?? ### = # =[= ########?? | | ?????????????? ? ?### ######+##########?###?# | | ?????????????? ? ???## ######%# ##?##### | | ??????????????? ? ### ##??## # #?##??## | | ????????############## ###### # ######## | | ????????# # #?#### # ######## | | ????????# | # ###### # ######?? | | ????????# # %# ##?#?##? | | ????????# # # #######? | | ????????# + + ####?#?# | | ????????# # # #?####?# | | ????????# ! # + ] #??##### | | ????????# ##! ######### #?###?## | | ????????# ##% ## "" # ######## | | ????????# ## #??"?? # / | | ????????# ## #? ""? ?# ######## | | ????????# ## ##? ?? # #??#?##? | | ????????############## #?? # #?#??### | | ??????????? # """ # #??#???? | | ??????????? Y + """ #########??#???# | | ??????????? # """ #?#???#?###???#? | | ????????????##+####### #? ######?#??#?##?? | | ?????????????????????## ## ""? ##???###????#??? | | ??????????????????????# #???""? #??#####?#?????# | | ??????????????????????# #????? ??##?#??##??????? | | ??????????????????????# @#???????????#????????##? | | ??????????????????????# #??????????????????##??? | | ?????????????????????# ??????????????????????? | | ?????????????????????# ??????????????????#?##? | | ?????????????????????# ?????????????????????? | | ?????????????????????# ????????????????#????? | | ?????????????????????#r ????????????????????? | | ?????????????????????# ????????????????????? | | ?????????????????????# ???????????????????? | | ?????????????????????# ???????????????????? | | ?????????????????????# r#??????????????????? | | ?????????????????????# #??????????????????? | | ?????????????????????# #??????????????????? | | ????????????????????? k #??????????????????? | | ????????????????????? ???????????????????? | | ??????????????????????? ?????????????????????? | | ?????????????????????????????????????????????????? | | ?????????????????????????????????????????????????? | | ?????????????????????????????????????????????????? | | ?????????????????????????????????????????????????? | | ?????????????????????????????????????????????????? | | ?????????????????????????????????????????????????? | | ?????????????????????????????????????????????????? | | ?????????????????????????????????????????????????? | | ?????????????????????????????????????????????????? | +----------------------------------------------------+ Best States ------------- Heat Dissipation 34 Energy Generation 16 Energy Capacity 290 Matter Stores 300 Matter Capacity 300 Sight Range 18 Terrain Scan Range 16 Terrain Scan Density 85 Armor Coverage 225 Core Shielding 20 Evasion (%) 50 Targeting Accuracy 16 Recoil Reduction 2 Item Schematics ----------------- None Robot Schematics ------------------ None Fabricated ------------ Nothing Alien Tech Used ----------------- None Achievements -------------- None Challenges ------------ None Game ------ Seed ParticleMassSword Manual? 0 Play Time 00:34:14 Cumulative 13.5 hours Start 2024.04.25 @ 20:00:02 End 2024.04.25 @ 20:34:33 Sessions 1 Manual Loads 0 Difficulty Rogue Special Mode None Game No. 27 Rogue 27 Adventurer 0 Explorer 0 Win Type - Total 0 Types 0/0/0/0/0/0/0/0/0 Lore% 18 Gallery% 19 Achievement% 16 Wizard Run 0 Options --------- Layout 1 ASCII 0 Keyboard 0 Movement Vi Keybinds 0 Fullscreen 2 Font 24/Smallcaps Map View 50x35 Zoom Use 0% Tactical HUD 1 Map Filters NONE Filters NONE Steam 1 RUN: 4888d10a-14f8-407d-a432-2e542c90906b